Cogmind - Beta 13 @@@ ROGUE MODE // 2024.04.19 @ 18:47:01 Player: H3-RMN Result: Destroyed by S-27 Virus with Autogun Performance ------------- Evolutions (3) 1500 Regions Visited (10) 2000 Robots Destroyed (15) 75 Value Destroyed (330) 330 Prototype IDs (28) 560 Alien Tech Used (0) 0 Bonus (335) 335 TOTAL SCORE: 4800 Bonus ------- Follower Combat Kills 35 Aligned with FarCom 300 Cogmind --------- Core Integrity 0/700 Matter 300/300 Energy 55/100 System Corruption 0% Temperature Cool (0) Movement Core (50) Location -7/Lower Caves Parts ------- > --- POWER (2) -------- (None) > --- PROPULSION (5) --- (None) > --- UTILITY (4) ------ Improved Signal Interpreter > --- WEAPON (2) ------- (None) > --- INVENTORY (5) ---- Improved Launcher Guidance Computer Transmission Jammer Authchip [Propulsion] Authchip [Processor] Latent Energy Streamer Peak State ------------ > --- POWER ------------ Backup Power I Micro Nuclear Core > --- PROPULSION ------- VTOL Module Cesium-ion Thruster Cesium-ion Thruster Improved VTOL Module Improved Cesium-ion Thruster > --- UTILITY ---------- Improved Signal Interpreter Transmission Jammer Hacking Suite Hacking Suite > --- WEAPON ----------- Power Sword Power Sword > --- INVENTORY -------- Cesium-ion Thruster Advanced Weight Redist. System Hacking Suite Authchip [Processor] Latent Energy Streamer [Rating: 47] Favorites ----------- Power Backup Power I Engine Backup Power I Power Core Micro Nuclear Core Propulsion Cesium-ion Thruster Treads Light Treads Wheel Wheel Hover Unit Backup Propulsion I Flight Unit Cesium-ion Thruster Utility Hacking Suite Device Advanced Weight Redist. System Storage Small Storage Unit Processor Signal Interpreter Hackware Hacking Suite Protection Backup Plating I Weapon Backup Laser I Energy Gun Backup Laser I Ballistic Gun Minigun Launcher Mini Grenade Launcher Slashing Weapon Power Sword Special Melee Weapon Improved Datajack Build | -11 -10 -10 -10 -9 -8 -7 -7 -7 -7 -7 ------- Run | Yrd Mat Min Exi Min Mat Fac Was Fac Low Low Slots Evolved 6 | . . . . . 4 2 . . . . Power 1 | . . . . . . 1 . . . . Propulsion 3 | . . . . . 2 1 . . . . Utility 2 | . . . . . 2 . . . . . Weapon . | . . . . . . . . . . . Parts Attached 51 | 7 4 . . 2 12 6 3 13 1 3 Power 8 | 1 . . . . 3 3 1 . . . Engine 5 | 1 . . . . 1 3 . . . . Core 3 | . . . . . 2 . 1 . . . Reactor . | . . . . . . . . . . . Propulsion 14 | 2 2 . . . 2 . 1 5 . 2 Treads 1 | 1 . . . . . . . . . . Leg . | . . . . . . . . . . . Wheel 1 | 1 . . . . . . . . . . Hover . | . . . . . . . . . . . Flight 12 | . 2 . . . 2 . 1 5 . 2 Utility 14 | 2 1 . . . 4 . 1 4 1 1 Device 7 | 1 . . . . 2 . . 2 1 1 Storage 3 | 1 1 . . . 1 . . . . . Processor 2 | . . . . . 1 . . 1 . . Hackware 2 | . . . . . . . 1 1 . . Protection . | . . . . . . . . . . . Artifact . | . . . . . . . . . . . Weapon 15 | 2 1 . . 2 3 3 . 4 . . Energy Gun 3 | 1 . . . . 1 1 . . . . Energy Cannon . | . . . . . . . . . . . Ballistic Gun 4 | 1 1 . . . 1 1 . . . . Ballistic Cannon . | . . . . . . . . . . . Launcher 3 | . . . . 2 1 . . . . . Special Weapon . | . . . . . . . . . . . Impact Weapon . | . . . . . . . . . . . Slashing Weapon 4 | . . . . . . . . 4 . . Piercing Weapon . | . . . . . . . . . . . Special Melee Weapon 1 | . . . . . . 1 . . . . Unidentified Prototypes 2 | . . . . . . 1 . 1 . . Parts Lost 18 | . . . . . 2 . 1 2 . 13 Power 3 | . . . . . 1 . . . . 2 Propulsion 8 | . . . . . . . . 2 . 6 Utility 4 | . . . . . . . 1 . . 3 Weapon 3 | . . . . . 1 . . . . 2 Highest Loss Streak 13 | . . . . . 2 . 1 2 . 13 To Critical Strikes . | . . . . . . . . . . . Average Slot Usage (%) 91 | . 98 85 85 89 75 92 89 98 100 66 Engine 7 | . 14 14 14 14 2 7 7 7 7 3 Core 5 | . . . . . 3 7 7 7 7 4 Flight 31 | . 2 28 28 28 28 30 27 36 38 20 Device 5 | . 4 . . . 4 7 7 7 7 7 Storage 4 | . 12 14 14 14 9 7 4 . . . Processor 5 | . . . . . 5 7 7 7 7 7 Hackware 6 | . . . . . . . 2 11 15 8 Protection 6 | . 11 14 14 14 9 7 7 3 . . Energy Gun 5 | . 15 14 14 14 5 4 7 3 . . Ballistic Gun 3 | . 11 . . . 6 7 7 3 . . Slashing Weapon 4 | . . . . . . . . 7 15 12 Naked Turns . | . . . . . . . . . . . Heaviest Build 22 | 15 15 8 8 8 20 22 22 14 14 14 Greatest Support 29 | 20 20 8 8 8 27 27 27 29 21 21 Greatest Overweight (x) 2 | . 2 . . . . 1 . . . . Average Overweight (x) . | . . . . . . . . . . . Largest Inventory Capacity 10 | 8 8 8 8 8 10 10 10 5 5 5 Average Capacity 6 | 7 7 8 8 8 8 10 7 5 5 5 Most Carried 10 | 5 8 8 8 8 10 10 10 5 5 5 Average Carried 6 | 3 6 8 7 7 7 9 7 4 5 5 Final Capacity 10 | 8 8 8 8 8 10 10 5 5 5 5 Final Carried 10 | 4 8 8 8 8 10 10 5 5 5 5 Class Distribution -------------------- 40% | Sprinter 29% | Mutant 28% | Hacker-Sprinter Dominant Class ---------------- Mutant | -10/Materials Mutant | -10/Mines Mutant | -10/Exiles Mutant | -9/Mines Sprinter | -8/Materials Sprinter | -7/Factory Sprinter | -7/Waste Hacker-Sprinter | -7/Factory Hacker-Sprinter | -7/Lower Caves Mutant | -7/Lower Caves Resources | -11 -10 -10 -10 -9 -8 -7 -7 -7 -7 -7 ----------- Run | Yrd Mat Min Exi Min Mat Fac Was Fac Low Low Matter Collected 779 | 285 20 20 . 20 71 . . 247 79 37 Remotely . | . . . . . . . . . . . Salvage Created 609 | 114 . . . . 104 . . 236 23 132 Parts 41 | 5 . . . . 13 . . 17 . 6 Haulers Intercepted 2 | . . . . . 2 . . . . . Recyclers Shooed . | . . . . . . . . . . . Parts Field Recycled . | . . . . . . . . . . . Retrieved Matter . | . . . . . . . . . . . Parts Self-Destructed 8 | . . . . . . . . . 1 7 Prevented 1 | . . . . . . . . . 1 . Kills | -11 -10 -10 -10 -9 -8 -7 -7 -7 -7 -7 ------- Run | Yrd Mat Min Exi Min Mat Fac Was Fac Low Low Combat Hostiles Destroyed 6 | . . . . . . . . 3 . 3 Melee 4 | . . . . . . . . 1 . 3 Guns 2 | . . . . . . . . 2 . . Classes Destroyed 10 | 2 . . . . 2 . . 5 . 1 Worker 2 | . . . . . 2 . . . . . Tunneler 1 | 1 . . . . . . . . . . Hauler 2 | . . . . . 2 . . . . . Recycler 1 | 1 . . . . . . . . . . Operator 2 | . . . . . . . . 2 . . Watcher 1 | . . . . . . . . 1 . . Swarmer 3 | . . . . . . . . . . 3 Hunter 1 | . . . . . . . . 1 . . Programmer 1 | . . . . . . . . 1 . . Decomposer 1 | . . . . . . . . . 1 . Thug 1 | . . . . . . . . 1 . . Best Kill Streak 3 | 2 . . . . 2 . . 2 . 3 Combat Bots Only 3 | . . . . . . . . 2 . 3 Max Kills in Single Turn 2 | 1 . . . . 2 . . 1 1 1 Gunslinging . | . . . . . . . . . . . Exploded . | . . . . . . . . . . . Melee 1 | . . . . . . . . 1 . 1 Uniques/NPCs Destroyed . | . . . . . . . . . . . Combat | -11 -10 -10 -10 -9 -8 -7 -7 -7 -7 -7 -------- Run | Yrd Mat Min Exi Min Mat Fac Was Fac Low Low Hostile Shots Fired 171 | . . . . 4 10 1 1 24 2 129 Missed 76 | . . . . 3 5 . . 8 2 58 Damage Taken 1608 | . . . . 12 113 36 46 235 . 1166 Core 748 | . . . . 12 31 . . . . 705 Absorbed by Shields . | . . . . . . . . . . . Regen/Repaired (Parts) 43 | . . . . . . . . 43 . . Core Remaining (%) 96 | 100 . . . 95 94 . . . . . Volleys Fired 27 | 5 . . . . 14 . . 8 . . Largest 2 | 2 . . . . 2 . . 2 . . Hottest 70 | 70 . . . . 50 . . 55 . . Shots Fired 47 | 10 . . . . 21 . . 16 . . Gun 45 | 10 . . . . 19 . . 16 . . Cannon . | . . . . . . . . . . . Launcher 2 | . . . . . 2 . . . . . Special . | . . . . . . . . . . . Kinetic 22 | 5 . . . . 9 . . 8 . . Thermal 23 | 5 . . . . 10 . . 8 . . Explosive 2 | . . . . . 2 . . . . . Electromagnetic . | . . . . . . . . . . . Robot Hit Streak 5 | 3 . . . . 5 . . 4 . . Robot Miss Streak 3 | 2 . . . . 3 . . 2 . . Penetration Max . | . . . . . . . . . . . Secondary Targets . | . . . . . . . . . . . Shots Hit Robots 50 | 6 . . . . 13 5 . 17 1 8 Core Hits 25 | 3 . . . . 8 . . 8 1 5 Critical Kills . | . . . . . . . . . . . Critical Parts Destroyed . | . . . . . . . . . . . Critical Strikes 1 | . . . . . . . . 1 . . Sever 1 | . . . . . . . . 1 . . Melee Attacks 40 | . . . . . . 5 . 19 1 15 Impact . | . . . . . . . . . . . Slashing 35 | . . . . . . . . 19 1 15 Piercing . | . . . . . . . . . . . Sneak Attacks 6 | . . . . . . 5 . . 1 . Combat Hostiles 1 | . . . . . . 1 . . . . Follow-up Attacks 3 | . . . . . . . . 1 . 2 Damage Inflicted 1298 | 92 . . . . 311 . . 403 93 399 Guns 387 | 92 . . . . 139 . . 156 . . Cannons . | . . . . . . . . . . . Explosions 172 | . . . . . 172 . . . . . Melee 735 | . . . . . . . . 247 93 395 Ramming 4 | . . . . . . . . . . 4 Kinetic 244 | 41 . . . . 103 . . 100 . . Thermal 143 | 51 . . . . 36 . . 56 . . Explosive 172 | . . . . . 172 . . . . . Electromagnetic . | . . . . . . . . . . . Impact . | . . . . . . . . . . . Slashing 735 | . . . . . . . . 247 93 395 Piercing . | . . . . . . . . . . . Highest Corruption . | . . . . . . . . . . . Average Corruption . | . . . . . . . . . . . Corruption Purged . | . . . . . . . . . . . Corruption Blocked . | . . . . . . . . . . . Overload Shots . | . . . . . . . . . . . Overflow Damage 31 | . . . . . 10 . . . . 21 Projectiles . | . . . . . . . . . . . Explosions 10 | . . . . . 10 . . . . . Melee 21 | . . . . . . . . . . 21 Knockbacks . | . . . . . . . . . . . Impact . | . . . . . . . . . . . Kinetic . | . . . . . . . . . . . Secondary . | . . . . . . . . . . . Self-Inflicted Damage 40 | . . . . . 38 . . . . 2 Shots 1 | . . . . . 1 . . . . . Rammed 2 | . . . . . . . . . . 2 Targets Rammed 2 | . . . . . . . . . . 2 Kicked . | . . . . . . . . . . . Crushed . | . . . . . . . . . . . Highest Temperature 45 | 27 . . . . 17 2 . 45 . 5 Average Temperature 12 | 12 . . . . 6 2 . 15 . 3 Received Heat Transfer 231 | . . . . 6 63 9 . 9 . 144 Siege Activations . | . . . . . . . . . . . Robots Corrupted . | . . . . . . . . . . . Combat Hostiles . | . . . . . . . . . . . Parts Fried . | . . . . . . . . . . . Impact Corruptions . | . . . . . . . . . . . Robots Melted . | . . . . . . . . . . . Combat Hostiles . | . . . . . . . . . . . Parts Melted . | . . . . . . . . . . . Heat Transferred 518 | 148 . . . . 148 . . 222 . . Parts Sabotaged . | . . . . . . . . . . . Parts Stolen . | . . . . . . . . . . . Parts Stripped . | . . . . . . . . . . . Power Chain Reactions . | . . . . . . . . . . . Alert | -11 -10 -10 -10 -9 -8 -7 -7 -7 -7 -7 ------- Run | Yrd Mat Min Exi Min Mat Fac Was Fac Low Low Peak Influence 150 | 10 50 19 . . 122 92 52 150 . . Initial 55 | . 6 19 . . . 55 37 15 . . Average 53 | 4 13 19 . . 77 70 36 63 . . Maximum Alert Level . | . . . . . . . . . . . Low Security (%) 100 | 100 100 100 . 100 100 100 100 100 . . Level 1 . | . . . . . . . . . . . Level 2 . | . . . . . . . . . . . Level 3 . | . . . . . . . . . . . Level 4 . | . . . . . . . . . . . Level 5 . | . . . . . . . . . . . High Security . | . . . . . . . . . . . Max Security . | . . . . . . . . . . . Squads Dispatched 16 | . 1 . . 1 2 2 . 10 . . Investigation 12 | . 1 . . 1 1 2 . 7 . . Extermination 1 | . . . . . . . . 1 . . Reinforcement 3 | . . . . . 1 . . 2 . . Assault . | . . . . . . . . . . . Garrison . | . . . . . . . . . . . Intercept . | . . . . . . . . . . . Searches Triggered . | . . . . . . . . . . . Construction Impeded . | . . . . . . . . . . . Haulers Reinforced . | . . . . . . . . . . . Active Scanning Responses . | . . . . . . . . . . . Cargo Convoy Interrupts . | . . . . . . . . . . . Stealth | -11 -10 -10 -10 -9 -8 -7 -7 -7 -7 -7 --------- Run | Yrd Mat Min Exi Min Mat Fac Was Fac Low Low Distress Signals 1 | . . . . . . . . 1 . . Communications Jammed . | . . . . . . . . . . . Distress Signals . | . . . . . . . . . . . Times Spotted 46 | . . 2 . 2 6 4 4 10 2 16 Peak Tracking Total 11 | . . 2 . 2 5 5 4 2 2 11 Tactical Retreats 3 | . . . . . 1 1 . . . 1 Traps | -11 -10 -10 -10 -9 -8 -7 -7 -7 -7 -7 ------- Run | Yrd Mat Min Exi Min Mat Fac Was Fac Low Low Traps Triggered 3 | . . . . . . 2 . 1 . . Indirectly . | . . . . . . . . . . . Trap Hack Attempts . | . . . . . . . . . . . Triggered . | . . . . . . . . . . . Disarmed . | . . . . . . . . . . . Reprogrammed . | . . . . . . . . . . . Reused . | . . . . . . . . . . . Traps Extracted . | . . . . . . . . . . . Installed 1 | . . 1 . . . . . . . . Triggered 1 | . . . . . . . . . 1 . Machines | -11 -10 -10 -10 -9 -8 -7 -7 -7 -7 -7 ---------- Run | Yrd Mat Min Exi Min Mat Fac Was Fac Low Low Machines Disabled . | . . . . . . . . . . . Max in Single Turn . | . . . . . . . . . . . Machines Repaired . | . . . . . . . . . . . Machines Dismantled . | . . . . . . . . . . . Machines Sabotaged . | . . . . . . . . . . . Overloaded Fab Kills . | . . . . . . . . . . . Hacking | -11 -10 -10 -10 -9 -8 -7 -7 -7 -7 -7 --------- Run | Yrd Mat Min Exi Min Mat Fac Was Fac Low Low Machines Accessed 29 | . 4 . 2 1 5 4 . 13 . . Terminals 14 | . 2 . . 1 4 2 . 5 . . Fabricators 4 | . . . . . . 1 . 3 . . Repair Stations 3 | . 1 . . . 1 . . 1 . . Recycling Units 2 | . 1 . . . . . . 1 . . Scanalyzers 3 | . . . . . . 1 . 2 . . Garrison Access 1 | . . . . . . . . 1 . . Total Hacks 108 | . 13 . 24 4 12 12 . 43 . . Successful 64 | . 5 . 24 2 3 6 . 24 . . Failed 44 | . 8 . . 2 9 6 . 19 . . Catastrophic 8 | . 1 . . . 4 2 . 1 . . Database Lockouts . | . . . . . . . . . . . Manual 42 | . 10 . 1 4 11 1 . 15 . . Terminals 41 | . 9 . . 4 11 4 . 13 . . Fabricators 18 | . . . . . . 4 . 14 . . Repair Stations 9 | . 3 . . . 1 . . 5 . . Recycling Units 4 | . 1 . . . . . . 3 . . Scanalyzers 10 | . . . . . . 4 . 6 . . Garrison Access 2 | . . . . . . . . 2 . . Terminal Hacks 36 | . 3 . 24 2 2 . . 5 . . Record 23 | . . . 23 . . . . . . . Part Schematic 9 | . 3 . . 1 2 . . 3 . . Robot Analysis 1 | . . . . 1 . . . . . . Open DSF 1 | . . . . . . . . 1 . . Locate Traps 1 | . . . . . . . . 1 . . Derelict Proto ID Bank 1 | . . . 1 . . . . . . . Fabricator Hacks 9 | . . . . . . 1 . 8 . . Network Status 2 | . . . . . . . . 2 . . Load Schematic 4 | . . . . . . 1 . 3 . . Build 3 | . . . . . . . . 3 . . Repair Station Hacks 6 | . 1 . . . 1 . . 4 . . Scan Component 2 | . . . . . . . . 2 . . Repair 2 | . . . . . . . . 2 . . Refit 2 | . 1 . . . 1 . . . . . Recycling Unit Hacks . | . . . . . . . . . . . Scanalyzer 7 | . . . . . . 4 . 3 . . Insert Component 4 | . . . . . . 2 . 2 . . Analyze 3 | . . . . . . 2 . 1 . . Garrison Access Hacks . | . . . . . . . . . . . Unauthorized Hacks 6 | . 1 . . . . 1 . 4 . . Terminals 1 | . . . . . . . . 1 . . Botnet 1 | . . . . . . . . 1 . . Fabricators 3 | . . . . . . 1 . 2 . . Prioritize 1 | . . . . . . . . 1 . . Recompile 2 | . . . . . . 1 . 1 . . Repair Stations . | . . . . . . . . . . . Recycling Units 1 | . 1 . . . . . . . . . Tunnel 1 | . 1 . . . . . . . . . Scanalyzers 1 | . . . . . . . . 1 . . Extract 1 | . . . . . . . . 1 . . Garrison Access . | . . . . . . . . . . . Data Cores Recovered 1 | . . . . . . . . 1 . . Used . | . . . . . . . . . . . Hacking Detections 25 | . 3 . . 1 4 4 . 13 . . Full Trace Events 9 | . 1 . . 1 1 1 . 5 . . Feedback Events . | . . . . . . . . . . . Feedback Blocked . | . . . . . . . . . . . Robot Schematics Acquired . | . . . . . . . . . . . Robots Built . | . . . . . . . . . . . Authchips . | . . . . . . . . . . . Time . | . . . . . . . . . . . Total Robot Build Rating . | . . . . . . . . . . . Part Schematics Acquired 19 | . 3 . . 1 2 2 . 11 . . Parts Built 4 | . . . . . . . . 4 . . Authchips . | . . . . . . . . . . . Time 302 | . . . . . . . . 302 . . Total Part Build Rating 17 | . . . . . . . . 17 . . Parts Repaired 2 | . . . . . . . . 2 . . Time 122 | . . . . . . . . 122 . . Parts Recycled . | . . . . . . . . . . . Recycled Matter . | . . . . . . . . . . . Retrieved Matter . | . . . . . . . . . . . Retrieved Components . | . . . . . . . . . . . Parts Scanalyzed 4 | . . . . . . 2 . 2 . . Part Schematics Acquired 3 | . . . . . . 2 . 1 . . Parts Damaged . | . . . . . . . . . . . Bothacking | -11 -10 -10 -10 -9 -8 -7 -7 -7 -7 -7 ------------ Run | Yrd Mat Min Exi Min Mat Fac Was Fac Low Low Used RIF Installer . | . . . . . . . . . . . Robots Hacked 4 | . . . . . . 4 . . . . Non-combat 4 | . . . . . . 4 . . . . Combat . | . . . . . . . . . . . Robot Hacks Applied 4 | . . . . . . 4 . . . . no_distress 1 | . . . . . . 1 . . . . find_chute 2 | . . . . . . 2 . . . . find_recycling 1 | . . . . . . 1 . . . . Relay Couplers Released . | . . . . . . . . . . . Fabnet Peak Effective % . | . . . . . . . . . . . Robots Rewired 1 | . . . . . . 1 . . . . Allies Hacked . | . . . . . . . . . . . Hacks Repelled . | . . . . . . . . . . . Allies | -11 -10 -10 -10 -9 -8 -7 -7 -7 -7 -7 -------- Run | Yrd Mat Min Exi Min Mat Fac Was Fac Low Low Total Allies 2 | . . . . . . 1 1 . . . Largest Group 1 | . . . . . . 1 1 . . . Highest-Rated Group 31 | . . . . . . 16 31 . . . Highest-Rated Ally 31 | . . . . . . 16 31 . . . Total Orders . | . . . . . . . . . . . Ally Attacks 11 | . . . . . . 8 3 . . . Total Damage 157 | . . . . . . 95 62 . . . Kills 1 | . . . . . . 1 . . . . Allies Corrupted . | . . . . . . . . . . . Allies Melted . | . . . . . . . . . . . Intel | -11 -10 -10 -10 -9 -8 -7 -7 -7 -7 -7 ------- Run | Yrd Mat Min Exi Min Mat Fac Was Fac Low Low Robot Analysis Total 1 | . . . . 1 . . . . . . Derelict Logs Recovered 4 | . . 1 . 1 . . . . 1 1 Drone Launches . | . . . . . . . . . . . Drone Recoveries . | . . . . . . . . . . . Exploration | -11 -10 -10 -10 -9 -8 -7 -7 -7 -7 -7 ------------- Run | Yrd Mat Min Exi Min Mat Fac Was Fac Low Low Turns Passed 2067 | 116 101 104 109 72 189 261 32 905 73 105 Spaces Moved 2850 | 49 106 95 291 134 326 397 81 898 266 207 Core 24 | 1 1 . . . . 1 . . . 21 Treads 61 | 44 17 . . . . . . . . . Legs . | . . . . . . . . . . . Wheels 4 | 4 . . . . . . . . . . Hover 58 | . 58 . . . . . . . . . Flight 2703 | . 30 95 291 134 326 396 81 898 266 186 Fastest Speed 26 | 50 37 37 37 37 28 28 28 26 26 26 Average Speed 33 | 151 81 37 37 37 32 28 28 26 26 29 Slowest Speed 200 | 160 200 37 37 37 37 100 34 30 26 50 Overloaded Moves . | . . . . . . . . . . . Propulsion Burnouts . | . . . . . . . . . . . Robots Hopped 10 | . . . . 4 . . . 4 . 2 Cave-ins Triggered . | . . . . . . . . . . . Exploration Rate (%) 34 | 4 30 38 69 32 38 9 63 22 49 28 Regions Visited 10 Branch Regions 5 Pre-discovered Areas 3 | . 1 . 1 1 . . . . . . Known Exits Taken 3 | . . . . . 1 . . 1 1 . Unknown Exits Taken 5 | 1 1 1 1 1 . . . . . . Scrap Searched 7 | . . 1 . 1 . . . . 1 4 Spaces Dug 7 | . . . . . . . . 7 . . Terrain Destroyed 19 | . . . . . 12 . . 7 . . Melee 7 | . . . . . . . . 7 . . Projectile . | . . . . . . . . . . . AOE 12 | . . . . . 12 . . . . . Terrain Rammed . | . . . . . . . . . . . Walls Destroyed . | . . . . . . . . . . . Machines Disabled . | . . . . . . . . . . . Actions | -11 -10 -10 -10 -9 -8 -7 -7 -7 -7 -7 --------- Run | Yrd Mat Min Exi Min Mat Fac Was Fac Low Low Total 3842 | 81 121 163 292 153 385 547 89 1517 267 227 Wait 809 | 10 . 68 . 16 23 131 . 557 . 4 Move 2821 | 48 105 94 290 125 325 397 80 889 265 203 Hop 10 | . . . . 4 . . . 4 . 2 Pick Up 40 | 11 6 . 1 1 6 3 3 9 . . Fast Attach 23 | . 3 . . 2 6 2 2 6 . 2 Attach 12 | 7 . . . . 2 1 . 2 . . Detach 3 | . . . . 2 1 . . . . . Swap 16 | . 1 . . . 4 3 1 5 1 1 Drop 33 | . 6 . 1 3 4 5 3 11 . . Fire 27 | 5 . . . . 14 . . 8 . . Melee 35 | . . . . . . 5 . 16 1 13 Ram 2 | . . . . . . . . . . 2 Kick . | . . . . . . . . . . . Crush . | . . . . . . . . . . . Escape Stasis 10 | . . . . . . . . 10 . . Rewire . | . . . . . . . . . . . Trap 1 | . . 1 . . . . . . . . Miscellaneous . | . . . . . . . . . . . Route ------- -11/Scrapyard -10/Materials -10/Mines -10/Exiles -9/Mines -8/Materials -7/Factory -7/Waste -7/Factory -7/Lower Caves -7/Lower Caves (discovered 1 exit: [*Fac]) History --------- Turn | Location | Event 28 | -11/Scrapyard | Discovered new exit (range 14) 117 | -11/Scrapyard | Entered Materials 146 | -10/Materials | Released all parts (7) 193 | -10/Materials | Met 8R-AWN 209 | -10/Materials | Discovered new exit (range 13) 218 | -10/Materials | Entered Mines 219 | -10/Mines | Followed 8R-AWN into the Mines 269 | -10/Mines | Found a hidden stash of uninstalled traps 271 | -10/Mines | Assembled infested the area 276 | -10/Mines | Assisted by a Guerilla fighting off Assembled 294 | -10/Mines | Learned Materials garrison access intel 305 | -10/Mines | Build established: Mutant 306 | -10/Mines | Discovered new exit (range 5) 322 | -10/Mines | Entered Exiles 332 | -10/Exiles | Welcomed by 8R-AWN 338 | -10/Exiles | Met EX-HEX 356 | -10/Exiles | Met EX-DEC 363 | -10/Exiles | Learned location of Zion (-7) 371 | -10/Exiles | Met EX-BIN 378 | -10/Exiles | Aligned with FarCom system 378 | -10/Exiles | Given EX-Vault access code 387 | -10/Exiles | Opened EX-Vault 390 | -10/Exiles | Found Latent Energy Streamer 399 | -10/Exiles | Warned to stay clear of 0b10 Research branches 426 | -10/Exiles | Discovered new exit (range 14) 431 | -10/Exiles | Left Exiles lab with Latent Energy Streamer 431 | -10/Exiles | Entered Mines 437 | -9/Mines | Learned location of Storage (-9) 447 | -9/Mines | Received a Rocket Launcher from a helpful Derelict 489 | -9/Mines | Discovered new exit (range 11) 503 | -9/Mines | Entered Materials 503 | -8/Materials | Evolved 4 slots: Propulsion x2, Utility x2 504 | -8/Materials | Loaded intel: 1 garrison access location 576 | -8/Materials | Discovered new exit (range 13) 692 | -8/Materials | Identified exit to Factory 692 | -8/Materials | Entered Factory 692 | -7/Factory | Evolved 2 slots: Power x1, Propulsion x1 872 | -7/Factory | Build established: Sprinter 953 | -7/Factory | Sucked down chute 953 | -7/Factory | Entered Waste 954 | -7/Waste | Met a frightened Derelict 958 | -7/Waste | Spotted C-40 Crusher 958 | -7/Waste | Spotted C-40 Crusher 960 | -7/Waste | Spotted C-40 Crusher 967 | -7/Waste | Spotted C-40 Crusher 970 | -7/Waste | Spotted C-40 Crusher 970 | -7/Waste | Spotted C-40 Crusher 972 | -7/Waste | Crushed by Compactor (1 part destroyed, 2 dropped) 976 | -7/Waste | Discovered new exit (range 10) 985 | -7/Waste | Identified exit to Factory 985 | -7/Waste | Entered Factory 1164 | -7/Factory | Fabricated Hacking Suite? 1326 | -7/Factory | P-60 Hacker assimilated allied Q1-CUU(g) 1465 | -7/Factory | Discovered new exit (range 16) 1471 | -7/Factory | Identified exit to Lower Caves 1546 | -7/Factory | Repaired Broken Imp. Launcher Guidance Computer? 1585 | -7/Factory | Fabricated Power Sword? 1586 | -7/Factory | Fabricated Imp. Cesium-ion Thruster (x1) 1690 | -7/Factory | Repaired Transmission Jammer 1717 | -7/Factory | Build established: Hacker-Sprinter 1890 | -7/Factory | Entered Lower Caves 1891 | -7/Lower Caves | Encountered a Warlord checkpoint 1938 | -7/Lower Caves | Learned location of 1 exit from Factory 1940 | -7/Lower Caves | Discovered new exit (range 5) 1941 | -7/Lower Caves | Identified exit to Lower Caves 1963 | -7/Lower Caves | Entered another Lower Caves area 1969 | -7/Lower Caves | Spotted B-75 Beast 1979 | -7/Lower Caves | Discovered new exit (range 6) 2002 | -7/Lower Caves | Encountered a Warlord checkpoint 2033 | -7/Lower Caves | Lost 3 allies 2046 | -7/Lower Caves | Core integrity fell below 50% 2056 | -7/Lower Caves | Learned 4 Factory zone layouts 2063 | -7/Lower Caves | Core integrity fell below 20% 2068 | -7/Lower Caves | Destroyed by S-27 Virus with Autogun Last Messages --------------- 02037_ Destroyed VTOL Module. 02037_ Power Sword follow-up attack on S-27 Virus. 02038_ VTOL Module fries itself beyond repair. 02040_ C-30 ARC bursts open, deploying its payload. 02040_ S-27 Virus unfolds itself. 02040_ Imp. Cesium-ion Thruster destroyed. 02042_ Power Sword destroyed. 02042_ S-27 Virus destroyed. 02044_ Power Sword destroyed. 02045_ Acquired VTOL Module. 02049_ S-27 Virus knocked back. 02051_ Acquired 10 matter. 02052_ Hacking Suite destroyed. 02055_ VTOL Module destroyed. 02056_ Acquired derelict log, extracted data. Data stored: Factory zone layouts (x4). 02059_ Slammed into G-47 Trooper. 02065_ Adv. Weight Redist. System destroyed. Map ----- +----------------------------------------------------+ | ?????????????????????????????????????????????????? | | ?????????????????????????????????????????????????? | | ?????????????????????????????????????????????????? | | ?????????????????????????????????????????????????? | | ?????????????????????????????????????????????????? | | ?????????????????????????????????????????????????? | | ?????????????????????????????????????????????????? | | ?????????????????????????????????????????????????? | | ?????????????????????????????????????????????????? | | ?????????????????????????????????????????????????? | | ?????????????????????????????????????????????????? | | ?????????????????????????????????????????????????? | | ?????????????????????????????????????????????????? | | ?????????????????????????????????????????####????? | | ??????????????????????????????? ????????# #????? | | ???????????????????????????????? ??????# # ???? | | ???????????????????????????????? ###??# # # ?#?? | | ????????????????????????????????? ?? ? ? ? | | ???????????????????##???????????? ?? # # ? | | ??????????????????## ????????????# #?# ## # ?? | | ??????????????????# ???????????# ### ## # ??? | | ??????????????????# ??????????# ## #? ???? | | ??????????????????# ???????### #?# ????? | | ???????????????????# ######## s g #??#=#####? | | ????????????????????# s ####! % ## | | ?????????????????????# @ s!%= ## | | ?????????????????????### ### # s s% ## | | ???????????????????????# ??# ## ## ###### | | ???????????????????????#???# ####### #????## | | ???????????????????????????# #?????# #?????## | | ???????????????????????????# #?????## #??????# | | ???????????????????????????# ??????# #?????# | | ??????????????????????????? ?????? #????# | | ???????????????????????????# ?????# #????# | | ???????????????????????????? ?????## ##????# | | ???????????????????????????? #??????# ##?????# | | ???????????????????????????? ???????# ##??????## | | ????????????????????????????#???????# #???????? | | ???????????????????????????????????? #???????? | | ???????????????????????????????????? ???????? # | | ???????????????????????????????????? ????????#? | | ???????????????????????????????????? ?????????? | | ???????????????????????????????????? ?????????? | | ?????????????????????????????????????????????????? | | ?????????????????????????????????????????????????? | | ?????????????????????????????????????????????????? | | ?????????????????????????????????????????????????? | | ?????????????????????????????????????????????????? | | ?????????????????????????????????????????????????? | | ?????????????????????????????????????????????????? | +----------------------------------------------------+ Best States ------------- Heat Dissipation 34 Energy Generation 19 Energy Capacity 250 Matter Stores 300 Matter Capacity 300 Sight Range 16 Terrain Scan Range 16 Terrain Scan Density 10 Jamming Range 12 Additional Mass Support 9 Armor Coverage 160 Evasion (%) 64 Recoil Reduction 1 Offensive Hacking 20 Authchip Count 2 Item Schematics ----------------- Med. Storage Unit | -10/Materials | Hacked Wheel | -10/Materials | Hacked Cargo Storage Unit | -10/Materials | Hacked Signal Interpreter | -9/Mines | Hacked Hacking Suite | -8/Materials | Hacked System Shield | -8/Materials | Hacked Core Analyzer | -7/Factory | Scanalyzed Mni. Grenade Launcher | -7/Factory | Scanalyzed Powered Armor | -7/Factory | Hacked Cld. Ion Engine | -7/Factory | Hacked Cld. Aerolev Unit | -7/Factory | Hacked Matter Filter | -7/Factory | Scanalyzed Adv. Targeting Computer | -7/Factory | Extracted Imp. Cooling System | -7/Factory | Extracted Recalibrator | -7/Factory | Extracted Hvy. Ion Cannon | -7/Factory | Extracted Actuator Array | -7/Factory | Extracted Mic. Nuclear Core | -7/Factory | Extracted Imp. Carbon-fiber Leg | -7/Factory | Extracted Robot Schematics ------------------ None Fabricated ------------ Hacking Suite | x1 | -7/Factory Power Sword | x2 | -7/Factory | Preloaded Imp. Cesium-ion Thruster | x1 | -7/Factory | Preloaded Alien Tech Used ----------------- None Achievements -------------- A New Friend Just What I Needed Librarian Made in Tau Ceti IV Party Time Challenges ------------ None Game ------ Seed ShieldGodTorch Manual? 0 Play Time 00:59:26 Cumulative 2.0 hours Start 2024.04.19 @ 07:42:49 End 2024.04.19 @ 18:47:01 Sessions 7 Manual Loads 0 Difficulty Rogue Special Mode None Game No. 2 Rogue 2 Adventurer 0 Explorer 0 Win Type - Total 0 Types 0/0/0/0/0/0/0/0/0 Lore% 7 Gallery% 6 Achievement% 9 Wizard Run 0 Options --------- Layout 1 ASCII 0 Keyboard 0 Movement Mouse Keybinds 0 Fullscreen 1 Font 24/Terminus Map View 50x35 Zoom Use 0% Tactical HUD 1 Map Filters NONE Filters NONE Steam 0 RUN: 38eec42f-46dd-4bff-a921-7ef5b44eb3a7